Cogmind - Beta 15 @@@ ROGUE MODE // 2025.07.24 @ 18:03:21 Player: LightKnight Result: Self-destructed Performance ------------- Evolutions (0) 0 Regions Visited (4) 800 Robots Destroyed (31) 155 Value Destroyed (640) 640 Prototype IDs (26) 520 Alien Tech Used (0) 0 Bonus (382) 382 TOTAL SCORE: 2497 Bonus ------- Follower Combat Kills 123 Aligned with FarCom 300 Friendly Fire -41 Cogmind --------- Core Integrity 121/250 Matter 295/300 Energy 64/100 System Corruption 2% Temperature Hot (204) Movement Treading (160) Location -9/Mines Parts ------- > --- POWER (1) -------- (None) > --- PROPULSION (2) --- Light Treads > --- UTILITY (2) ------ Improved Heat Sink Medium Storage Unit > --- WEAPON (2) ------- Beam Cannon > --- INVENTORY (10) --- Reinforced Ion Engine Light Treads Light Treads Heat Sink Subdweller Optics Experimental Sensor Array AWS/Gauss Peak State ------------ > --- POWER ------------ Light Nuclear Core > --- PROPULSION ------- Light Treads Light Treads > --- UTILITY ---------- Improved Heat Sink Medium Storage Unit > --- WEAPON ----------- Beam Cannon Beam Cannon > --- INVENTORY -------- Light Ion Engine Light Treads Light Treads Heat Sink Subdweller Optics Experimental Sensor Array Beam Cannon Beam Cannon AWS/Gauss [Rating: 14] Favorites ----------- Power Ion Engine Engine Ion Engine Power Core Light Nuclear Core Propulsion Light Treads Treads Light Treads Leg Aluminum Leg Utility Medium Storage Unit Device Heat Sink Storage Medium Storage Unit Weapon Beam Cannon Energy Cannon Beam Cannon Ballistic Gun Assault Rifle Build | -11 -10 -10 -10 -9 ------- Run | Yrd Mat Min Exi Min Slots Evolved . | . . . . . Power . | . . . . . Propulsion . | . . . . . Utility . | . . . . . Weapon . | . . . . . Parts Attached 16 | . 11 3 . 2 Power 2 | . 1 1 . . Engine 1 | . 1 . . . Core 1 | . . 1 . . Reactor . | . . . . . Propulsion 5 | . 5 . . . Treads 2 | . 2 . . . Leg 3 | . 3 . . . Wheel . | . . . . . Hover . | . . . . . Flight . | . . . . . Utility 4 | . 2 2 . . Device 3 | . 1 2 . . Storage 1 | . 1 . . . Processor . | . . . . . Hackware . | . . . . . Protection . | . . . . . Artifact . | . . . . . Weapon 5 | . 3 . . 2 Energy Gun . | . . . . . Energy Cannon 4 | . 2 . . 2 Ballistic Gun 1 | . 1 . . . Ballistic Cannon . | . . . . . Launcher . | . . . . . Special Weapon . | . . . . . Impact Weapon . | . . . . . Slashing Weapon . | . . . . . Piercing Weapon . | . . . . . Special Melee Weapon . | . . . . . Unidentified Prototypes . | . . . . . Parts Lost 5 | . . . . 5 Power 1 | . . . . 1 Propulsion 1 | . . . . 1 Utility . | . . . . . Weapon 3 | . . . . 3 Highest Loss Streak 5 | . . . . 5 To Critical Strikes . | . . . . . Average Backups 9 | 6 9 10 9 8 Power 1 | 1 1 2 1 1 Propulsion 2 | 4 3 2 2 2 Utility 1 | . . 1 3 3 Weapon 3 | 1 3 3 3 2 Tool/Special . | . . . . . Unused Backups 19 | . 8 2 2 7 Power 4 | . 1 . 1 2 Propulsion 6 | . 3 1 . 2 Utility 3 | . 1 . . 2 Weapon 6 | . 3 1 1 1 Tool/Special . | . . . . . Average Slot Usage (%) 97 | . 92 100 100 96 Engine 8 | . 14 8 . . Core 5 | . . 5 14 10 Treads 20 | . 8 28 28 28 Leg 7 | . 19 . . . Device 11 | . 6 14 14 14 Storage 14 | . 14 14 14 14 Energy Cannon 21 | . 8 28 28 28 Ballistic Gun 6 | . 19 . . . Peak Build Rating 14 | 6 8 13 14 14 Average Rating 9 | 6 7 9 13 13 On Entrance 9 | 6 6 8 13 14 Naked Turns . | . . . . . Heaviest Build 22 | 13 22 22 22 22 Greatest Support 40 | 20 40 40 40 40 Greatest Overweight (x) . | . . . . . Average Overweight (x) . | . . . . . Largest Inventory Capacity 10 | 8 10 10 10 10 Average Capacity 9 | 8 9 10 10 10 Most Carried 10 | 6 10 10 10 10 Average Carried 9 | 6 9 9 9 9 Final Capacity 10 | 8 10 10 10 10 Final Carried 10 | 6 10 10 10 8 Class Distribution -------------------- 100% | Mutant Dominant Class ---------------- Mutant | -10/Materials Mutant | -10/Mines Mutant | -10/Exiles Mutant | -9/Mines Resources | -11 -10 -10 -10 -9 ----------- Run | Yrd Mat Min Exi Min Matter Collected 654 | 199 410 40 . 5 Remotely . | . . . . . Salvage Created 784 | . 530 238 . 16 Parts 62 | . 44 18 . . Haulers Intercepted 1 | . 1 . . . Recyclers Shooed 1 | . 1 . . . Parts Field Recycled . | . . . . . Retrieved Matter . | . . . . . Parts Self-Destructed . | . . . . . Prevented . | . . . . . Kills | -11 -10 -10 -10 -9 ------- Run | Yrd Mat Min Exi Min Combat Hostiles Destroyed 27 | . 16 10 . 1 Guns 12 | . 12 . . . Cannons 11 | . 4 6 . 1 AOE 3 | . . 3 . . Classes Destroyed 8 | . 7 . . 1 Worker 1 | . 1 . . . Hauler 1 | . 1 . . . Operator 1 | . 1 . . . Watcher 2 | . 2 . . . Swarmer 15 | . 9 6 . . Grunt 10 | . 6 4 . . Subdweller 1 | . 1 . . . Assembled 1 | . . . . 1 Best Kill Streak 4 | . 4 3 . 1 Combat Bots Only 3 | . 3 3 . 1 Max Kills in Single Turn 3 | . 2 3 . 1 Gunslinging 1 | . 1 . . . Exploded 3 | . . 3 . . Melee . | . . . . . Uniques/NPCs Destroyed . | . . . . . Combat | -11 -10 -10 -10 -9 -------- Run | Yrd Mat Min Exi Min Hostile Shots Fired 117 | . 53 22 . 42 Missed 38 | . 21 8 . 9 Hits 79 | . 32 14 . 33 Melee 9 | . . . . 9 Projectile 70 | . 32 14 . 24 AOE 1 | . 1 . . . Part Disruptions 1 | . . . . 1 Damage Taken 1115 | . 391 131 . 593 Core 129 | . 54 8 . 67 Absorbed by Shields . | . . . . . Core Remaining (%) 100 | 100 . . . . Volleys Fired 86 | . 60 15 . 11 Largest 2 | . 2 2 . 2 Hottest 120 | . 120 120 . 120 Shots Fired 171 | . 120 30 . 21 Gun 104 | . 104 . . . Cannon 67 | . 16 30 . 21 Launcher . | . . . . . Special . | . . . . . Kinetic 104 | . 104 . . . Thermal 67 | . 16 30 . 21 Explosive . | . . . . . Electromagnetic . | . . . . . Robot Hit Streak 9 | . 8 8 . 9 Robot Miss Streak 6 | . 6 2 . 2 Penetration Max . | . . . . . Secondary Targets 2 | . 2 . . . Max Gunslinging Chain 1 | . 1 . . . Shots Hit Robots 93 | . 65 16 . 12 Core Hits 45 | . 29 10 . 6 Critical Kills . | . . . . . Critical Parts Destroyed 1 | . 1 . . . Critical Strikes 1 | . 1 . . . Destroy 1 | . 1 . . . Melee Attacks . | . . . . . Impact . | . . . . . Slashing . | . . . . . Piercing . | . . . . . Sneak Attacks . | . . . . . Combat Hostiles . | . . . . . Follow-up Attacks . | . . . . . Damage Inflicted 1710 | . 911 502 . 297 Guns 770 | . 770 . . . Cannons 759 | . 140 322 . 297 Explosions 175 | . . 175 . . Melee . | . . . . . Ramming 6 | . 1 5 . . Kinetic 770 | . 770 . . . Thermal 934 | . 140 497 . 297 Explosive . | . . . . . Electromagnetic . | . . . . . Impact . | . . . . . Slashing . | . . . . . Piercing . | . . . . . Highest Corruption 2 | . . . . 2 Average Corruption 2 | . . . . 2 Corruption Purged . | . . . . . Corruption Blocked . | . . . . . Overload Shots . | . . . . . Overflow Damage 9 | . . 9 . . Projectiles . | . . . . . Explosions 9 | . . 9 . . Melee . | . . . . . Knockbacks . | . . . . . Impact . | . . . . . Kinetic . | . . . . . Secondary . | . . . . . Self-Inflicted Damage . | . . . . . Shots . | . . . . . Rammed 3 | . . 3 . . Targets Rammed 4 | . 1 3 . . Kicked 1 | . 1 . . . Crushed . | . . . . . Highest Temperature 269 | . 135 144 . 269 Average Temperature 73 | . 57 47 . 121 Received Heat Transfer 511 | . 135 24 . 352 Effects 4 | . . . . 4 Energy Bleed 1 | . . . . 1 Interference 3 | . . . . 3 Siege Activations . | . . . . . Martial Activations . | . . . . . Shielding Activations . | . . . . . Robots Disrupted . | . . . . . Combat Hostiles . | . . . . . Robots Corrupted . | . . . . . Combat Hostiles . | . . . . . Parts Fried . | . . . . . Impact Corruptions . | . . . . . Robots Melted 1 | . . 1 . . Combat Hostiles 1 | . . 1 . . Parts Melted 2 | . 2 . . . Heat Transferred 1891 | . 296 966 . 629 Parts Sabotaged . | . . . . . Parts Stolen . | . . . . . Parts Stripped . | . . . . . Power Chain Reactions . | . . . . . Alert | -11 -10 -10 -10 -9 ------- Run | Yrd Mat Min Exi Min Maximum Alert Level 1 | . 1 1 . . Low Security (%) 60 | 100 57 61 . 100 Level 1 39 | . 42 38 . . Level 2 . | . . . . . Level 3 . | . . . . . Level 4 . | . . . . . Level 5 . | . . . . . High Security . | . . . . . Max Security . | . . . . . Peak Influence 329 | . 329 315 . 63 Initial 92 | . . 92 . . Average 137 | . 144 137 . 31 Influence Increases 1036 | . 528 445 . 63 Destroy 0b10 Robot/C 640 | . 300 300 . 40 Destroy 0b10 Robot/NC 25 | . 25 . . . Destroy Leader 136 | . 76 50 . 10 Allied During Kill 57 | . . 44 . 13 Successful Hack 4 | . 4 . . . Select Force Hacks 60 | . 60 . . . Disable Machine 30 | . . 30 . . Destroy Structure 24 | . 3 21 . . Lose Combat Pursuer 60 | . 60 . . . Influence Decreases 1036 | . 290 498 185 63 Entered New Map 331 | . . 146 185 . Time Decay 662 | . 290 352 . 20 Lost Part 20 | . . . . 20 Lost Ally 23 | . . . . 23 Squads Dispatched 4 | . 3 1 . . Investigation 2 | . 2 . . . Extermination . | . . . . . Reinforcement 1 | . 1 . . . Assault 1 | . . 1 . . Garrison . | . . . . . Intercept . | . . . . . Searches Triggered . | . . . . . Construction Impeded . | . . . . . Haulers Reinforced . | . . . . . Active Scanning Responses . | . . . . . Cargo Convoy Interrupts . | . . . . . Stealth | -11 -10 -10 -10 -9 --------- Run | Yrd Mat Min Exi Min Distress Signals 5 | . 4 1 . . Communications Jammed . | . . . . . Distress Signals . | . . . . . Times Spotted 61 | . 26 16 . 19 Peak Tracking Total 20 | . 4 4 . 20 Tactical Retreats 5 | . 4 . . 1 Traps | -11 -10 -10 -10 -9 ------- Run | Yrd Mat Min Exi Min Traps Triggered 1 | . 1 . . . Indirectly . | . . . . . Trap Hack Attempts . | . . . . . Triggered . | . . . . . Disarmed . | . . . . . Reprogrammed . | . . . . . Reused . | . . . . . Traps Extracted . | . . . . . Installed . | . . . . . Triggered . | . . . . . Machines | -11 -10 -10 -10 -9 ---------- Run | Yrd Mat Min Exi Min Machines Disabled 2 | . . 2 . . Max in Single Turn 2 | . . 2 . . Machines Repaired . | . . . . . Machines Dismantled . | . . . . . Machines Sabotaged . | . . . . . Overloaded Fab Kills . | . . . . . Hacking | -11 -10 -10 -10 -9 --------- Run | Yrd Mat Min Exi Min Machines Accessed 10 | . 7 1 2 . Terminals 6 | . 5 1 . . Fabricators . | . . . . . Repair Stations . | . . . . . Recycling Units 2 | . 2 . . . Scanalyzers . | . . . . . Garrison Access . | . . . . . Total Hacks 22 | . 17 3 2 . Successful 13 | . 11 . 2 . Failed 8 | . 5 3 . . Catastrophic 1 | . 1 . . . Database Lockouts 1 | . 1 . . . Manual 17 | . 13 3 1 . Terminals 18 | . 15 3 . . Fabricators . | . . . . . Repair Stations . | . . . . . Recycling Units 2 | . 2 . . . Scanalyzers . | . . . . . Garrison Access . | . . . . . Terminal Hacks 8 | . 6 . 2 . Record 1 | . . . 1 . Robot Analysis 2 | . 2 . . . Prototype ID Bank 2 | . 2 . . . Locate Traps 1 | . 1 . . . Hauler Manifests 1 | . 1 . . . Proto ID Catalog 1 | . . . 1 . Fabricator Hacks . | . . . . . Repair Station Hacks . | . . . . . Recycling Unit Hacks . | . . . . . Scanalyzer . | . . . . . Garrison Access Hacks . | . . . . . Unauthorized Hacks 5 | . 5 . . . Terminals 3 | . 3 . . . Botnet 3 | . 3 . . . Fabricators . | . . . . . Repair Stations . | . . . . . Recycling Units 2 | . 2 . . . Tunnel 2 | . 2 . . . Scanalyzers . | . . . . . Garrison Access . | . . . . . Data Cores Recovered . | . . . . . Used . | . . . . . Hacking Detections 5 | . 4 1 . . Full Trace Events . | . . . . . Feedback Events . | . . . . . Feedback Blocked . | . . . . . Robot Schematics Acquired . | . . . . . Robots Built . | . . . . . Authchips . | . . . . . Time . | . . . . . Total Robot Build Rating . | . . . . . Part Schematics Acquired . | . . . . . Parts Built . | . . . . . Authchips . | . . . . . Time . | . . . . . Total Part Build Rating . | . . . . . Parts Repaired . | . . . . . Time . | . . . . . Parts Recycled . | . . . . . Recycled Matter . | . . . . . Retrieved Matter . | . . . . . Retrieved Components . | . . . . . Parts Scanalyzed . | . . . . . Part Schematics Acquired . | . . . . . Parts Damaged . | . . . . . Bothacking | -11 -10 -10 -10 -9 ------------ Run | Yrd Mat Min Exi Min Used RIF Installer . | . . . . . Robots Hacked . | . . . . . Non-combat . | . . . . . Combat . | . . . . . Robot Hacks Applied . | . . . . . Relay Couplers Released . | . . . . . Fabnet Peak Effective % . | . . . . . Robots Rewired . | . . . . . Allies Hacked . | . . . . . Hacks Repelled . | . . . . . Allies | -11 -10 -10 -10 -9 -------- Run | Yrd Mat Min Exi Min Total Allies 5 | . . 5 . . Largest Group 5 | . . 5 4 4 Highest-Rated Group 102 | . . 102 71 71 Highest-Rated Ally 31 | . . 31 31 31 Total Orders . | . . . . . Ally Attacks 44 | . . 13 . 31 Total Damage 512 | . . 196 . 316 Kills 10 | . . 5 . 5 Allies Corrupted . | . . . . . Allies Melted . | . . . . . Intel | -11 -10 -10 -10 -9 ------- Run | Yrd Mat Min Exi Min Active Infowar (turns) . | . . . . . Robot Analysis Total 2 | . 2 . . . Derelict Logs Recovered 1 | . . 1 . . Drone Launches . | . . . . . Drone Recoveries . | . . . . . Exploration | -11 -10 -10 -10 -9 ------------- Run | Yrd Mat Min Exi Min Turns Passed 3153 | 4 1145 1329 604 71 Spaces Moved 1595 | 4 596 597 377 21 Core . | . . . . . Treads 1192 | . 197 597 377 21 Legs 403 | 4 399 . . . Wheels . | . . . . . Hover . | . . . . . Flight . | . . . . . Fastest Speed 120 | 120 120 160 160 160 Average Speed 149 | 120 133 160 160 160 Slowest Speed 160 | 120 160 160 160 160 Overloaded Moves . | . . . . . Propulsion Burnouts . | . . . . . Robots Hopped . | . . . . . Potential Cave-ins . | . . . . . Cave-ins Triggered . | . . . . . Exploration Rate (%) 55 | 2 95 98 70 13 Regions Visited 4 Branch Regions 3 Pre-discovered Areas 3 | . 2 . 1 . Known Exits Taken . | . . . . . Unknown Exits Taken 4 | 1 1 1 1 . Scrap Searched 1 | . . 1 . . Spaces Dug . | . . . . . Terrain Destroyed 22 | . . 22 . . Melee . | . . . . . Projectile . | . . . . . AOE 22 | . . 22 . . Terrain Rammed . | . . . . . Walls Destroyed . | . . . . . Machines Disabled . | . . . . . Actions | -11 -10 -10 -10 -9 --------- Run | Yrd Mat Min Exi Min Total 2192 | 3 830 942 379 38 Wait 463 | . 143 318 . 2 Move 1591 | 3 595 596 376 21 Hop . | . . . . . Pick Up 12 | . 8 2 1 1 Fast Attach 5 | . 5 . . . Attach 4 | . 2 . . 2 Detach 1 | . 1 . . . Swap 7 | . 4 3 . . Drop 19 | . 11 5 2 1 Fire 86 | . 60 15 . 11 Melee . | . . . . . Ram . | . . . . . Kick 1 | . 1 . . . Crush 3 | . . 3 . . Escape Stasis . | . . . . . Rewire . | . . . . . Trap . | . . . . . Miscellaneous . | . . . . . Route ------- -11/Scrapyard -10/Materials (discovered 4 exits: *Mat x3 / *Min) -10/Mines (discovered 4 exits: *Mat x2 / *Exi / [*Sub]) -10/Exiles -9/Mines History --------- Turn | Location | Event 1 | -11/Scrapyard | Discovered new exit (range 1) 5 | -11/Scrapyard | Entered Materials 304 | -10/Materials | Build established: Mutant 319 | -10/Materials | Discovered new exit (range 15) 349 | -10/Materials | Discovered new exit (range 12) 480 | -10/Materials | Central database locked down 484 | -10/Materials | Discovered new exit (range 5) 705 | -10/Materials | Derelicts attacked the area 920 | -10/Materials | Discovered new exit (range 13) 1150 | -10/Materials | Entered Mines 1211 | -10/Mines | Met a Derelict testing a Signal Generator 1777 | -10/Mines | Deemed a non-threat by the Exiles lab entrance 1777 | -10/Mines | Discovered new exit (range 5) 1852 | -10/Mines | Assisted by bots powering up and referring to "LRC-V3" 1937 | -10/Mines | Discovered new exit (range 11) 2044 | -10/Mines | Discovered new exit (range 11) 2070 | -10/Mines | Identified exit to Materials 2084 | -10/Mines | Found a hidden stash of uninstalled traps 2188 | -10/Mines | Found a damaged Exp. Sensor Array with a note attached 2192 | -10/Mines | Found Prototype Device 2218 | -10/Mines | Received a Mining Laser from a helpful Derelict 2479 | -10/Mines | Entered Exiles 2479 | -10/Exiles | Accompanied by 4 allies 2518 | -10/Exiles | Met 8R-AWN 2545 | -10/Exiles | Met EX-HEX 2639 | -10/Exiles | Met EX-DEC 2670 | -10/Exiles | Learned location of Zion (-6) 2790 | -10/Exiles | Met EX-BIN 2884 | -10/Exiles | Aligned with FarCom system 2886 | -10/Exiles | Given EX-Vault access code 2923 | -10/Exiles | Opened EX-Vault 2933 | -10/Exiles | Found AWS/Gauss 2966 | -10/Exiles | Warned to stay clear of 0b10 Research branches 2990 | -10/Exiles | Exiles lab attacked by MAIN.C 3070 | -10/Exiles | Discovered new exit (range 10) 3083 | -10/Exiles | Left Exiles lab with AWS/Gauss 3083 | -10/Exiles | Entered Mines 3083 | -9/Mines | Accompanied by 4 allies 3118 | -9/Mines | Assembled infested the area 3154 | -9/Mines | Core integrity fell below 50% 3154 | -9/Mines | Self-destructed Last Messages --------------- 03129_ as-26018 suffers critical hit (Burn). 03129_ as-26018 destroyed. 03133_ Lgt. Nuclear Core destroyed. 03133_ System corrupted by crushing effect (+2). 03134_ as-42878 destroyed. 03135_ as-48394 destroyed. 03138_ Trooper 1b suffers critical hit (Burn). 03139_ as-12424 destroyed. 03140_ Trooper 1b suffers critical hit (Burn). 03140_ Trooper 1b destroyed. 03141_ Trooper 1a destroyed. 03142_ Overheating: Energy bleed (-10). 03143_ Overheating: System interference. 03143_ Imp. Heat Sink temporarily disabled. 03143_ Beam Cannon temporarily disabled. 03144_ Acquired 5 matter. 03145_ Mercenary 1a destroyed. 03150_ Beam Cannon destroyed. 03150_ Lgt. Treads destroyed. 03153_ Beam Cannon destroyed. Map ----- +----------------------------------------------------+ | ???????????????????????????????????????????? | | ???????????????????????????????????????????? | | ???????????????????????????????????????????? | | ???????????????????????????????????????????? | | ???????????????????????????????????????????? | | ???????????????????????????????????????????? | | ???????????????????????????????????????????? | | ???????????????????????????????????????????? | | ???????????????????????????????????????????? | | ???????????????????????????????????????????? | | ???????????????????????????????????????????? | | ????????????????????????##?????????????????? | | ??????????????????????? ###???????????????? | | ??????????????????????? ????????????????? | | ??????????????????????? #????????????????? | | ?????????????????????? #????????????????? | | ?????????????????????? ##???????????????? | | ?????????????????????? ##??????????????? | | ???????????????#####?# ##?????????????? | | ??????????????## ## = #####?????????? | | ??????????????# a *% ##????????? | | ?????????????## a% #????????? | | ???????????### aaa % % ???????? | | ??????????## aa%%! % #??????????????? | | ?????????## aa## ##??????????????? | | ????????## a@#?# #???????????????? | | ????????# ##? #???????????????? | | ????????# %= #?? ##???????????????? | | ????????## ! ##??##????????????????? | | ?????????## ##???????????????????? | | ??????????# #???????????????????? | | ??????????# #???????????????????? | | ??????????## ##???????????????????? | | ???????????## !% ##????g???????????????? | | ????????????# * #??????g??????????????? | | ???????# ## ##???????b?????????????? | | ??????# ##??????????????????????? | | ?????# ##???????????????????????? | | ?????# ##????????????????????????? | | ????# ##?????????????????????????? | | ????# ##???????????????????????????? | | ????## ###?????????????????????????????? | | ?????######????????????????????????????????? | | ???????????????????????????????????????????? | | | | | | | | | | | | | +----------------------------------------------------+ Best States ------------- Heat Dissipation 39 Energy Generation 14 Energy Capacity 250 Matter Stores 300 Matter Capacity 300 Sight Range 16 Terrain Scan Density 10 Evasion (%) 55 Recoil Reduction 2 Item Schematics ----------------- None Robot Schematics ------------------ None Fabricated ------------ Nothing Repaired ---------- Nothing Alien Tech Used ----------------- None Achievements -------------- None Challenges ------------ None Game ------ Seed WardroneMagneticBeam Manual? 0 Play Time 00:47:17 Cumulative 395.8 hours Start 2025.07.24 @ 13:57:19 End 2025.07.24 @ 18:03:21 Sessions 4 Manual Loads 0 Difficulty Rogue Special Mode None Game No. 262 Rogue 262 Adventurer 0 Explorer 0 Win Type - Total 28 Types 22/0/4/2/0/0/0/0/0/0 Lore% 91 Gallery% 82 Achievement% 68 Wizard Run 0 Options --------- Layout 0 ASCII 1 Keyboard 1 Movement Arrows Keybinds 0 Fullscreen 2 Font 18/Terminus Map View 76x50 Zoom Use 0% Tactical HUD 1 Map Filters NONE Filters NONE Steam 1 RUN: 44c7dc36-c40b-4362-91ad-d7149460fa1c